[Event "Late-Titled-Tuesday-Blitz-December-26-2023"]
[Site "Chess.com"]
[Date "2023.12.26"]
[Round "5"]
[White "greekplayer1"]
[Black "Fh2411"]
[Result "0-1"]
[WhiteElo "2705"]
[BlackElo "2538"]
[TimeControl "180+1"]
[EndTime "14:55:10 PST"]
[Termination "Fh2411 won by resignation"]

1. e4 {[%clk 0:02:46.3]} 1... c6 {[%clk 0:02:57.9]} 2. d4 {[%clk 0:02:42.4]}
2... d5 {[%clk 0:02:57.7]} 3. exd5 {[%clk 0:02:43.3]} 3... cxd5 {[%clk
0:02:58.3]} 4. Bd3 {[%clk 0:02:43]} 4... Nc6 {[%clk 0:02:57.6]} 5. c3 {[%clk
0:02:42]} 5... Qc7 {[%clk 0:02:57.4]} 6. h3 {[%clk 0:02:41.7]} 6... g6 {[%clk
0:02:56.5]} 7. Nf3 {[%clk 0:02:41.5]} 7... Bf5 {[%clk 0:02:55.6]} 8. O-O {[%clk
0:02:37.9]} 8... Nf6 {[%clk 0:02:54]} 9. Na3 {[%clk 0:02:37.9]} 9... Bxd3 {[%clk
0:02:46.6]} 10. Qxd3 {[%clk 0:02:37.8]} 10... a6 {[%clk 0:02:45.9]} 11. Nc2
{[%clk 0:02:37.6]} 11... Bg7 {[%clk 0:02:44.2]} 12. Re1 {[%clk 0:02:36.7]} 12...
e6 {[%clk 0:02:34.9]} 13. Be3 {[%clk 0:02:33.6]} 13... O-O {[%clk 0:02:33.9]}
14. a3 {[%clk 0:02:30]} 14... Rfc8 {[%clk 0:02:23.4]} 15. Qd2 {[%clk 0:02:22.3]}
15... Ne4 {[%clk 0:02:22]} 16. Qc1 {[%clk 0:02:22.5]} 16... Na5 {[%clk
0:02:18.2]} 17. Bf4 {[%clk 0:02:20.6]} 17... Qb6 {[%clk 0:02:06.1]} 18. Rb1
{[%clk 0:02:20.2]} 18... Nc4 {[%clk 0:01:09.9]} 19. Ng5 {[%clk 0:02:09]} 19...
Nxg5 {[%clk 0:01:04.6]} 20. Bxg5 {[%clk 0:02:09.9]} 20... Qb3 {[%clk 0:01:00.1]}
21. Ne3 {[%clk 0:02:04.3]} 21... Nxe3 {[%clk 0:00:53.2]} 22. Qxe3 {[%clk
0:02:05.2]} 22... b5 {[%clk 0:00:49.9]} 23. h4 {[%clk 0:02:05.6]} 23... h5
{[%clk 0:00:48]} 24. Bh6 {[%clk 0:02:02]} 24... Qc2 {[%clk 0:00:41]} 25. Bxg7
{[%clk 0:02:01.3]} 25... Kxg7 {[%clk 0:00:41.9]} 26. Qg3 {[%clk 0:01:55.4]}
26... Qf5 {[%clk 0:00:40.1]} 27. Rbc1 {[%clk 0:01:53.6]} 27... a5 {[%clk
0:00:35.7]} 28. Re5 {[%clk 0:01:54]} 28... Qf6 {[%clk 0:00:36.1]} 29. Rxh5
{[%clk 0:01:53.3]} 29... Rh8 {[%clk 0:00:33.8]} 30. Rg5 {[%clk 0:01:53.8]} 30...
Rh6 {[%clk 0:00:28.6]} 31. Re1 {[%clk 0:01:16.4]} 31... Rah8 {[%clk 0:00:27]}
32. h5 {[%clk 0:01:16.1]} 32... Rxh5 {[%clk 0:00:25.4]} 33. Rxh5 {[%clk
0:01:17]} 33... Rxh5 {[%clk 0:00:26]} 34. Re3 {[%clk 0:01:07.9]} 34... Qf5
{[%clk 0:00:20.2]} 35. Qe5+ {[%clk 0:01:04.8]} 35... Qxe5 {[%clk 0:00:20.2]} 36.
dxe5 {[%clk 0:01:05.7]} 36... Rh4 {[%clk 0:00:17.2]} 37. g3 {[%clk 0:01:00.1]}
37... Rc4 {[%clk 0:00:17.8]} 38. b3 {[%clk 0:00:54.6]} 38... Rc6 {[%clk
0:00:16.4]} 39. Rd3 {[%clk 0:00:53.5]} 39... g5 {[%clk 0:00:16.6]} 40. Kg2
{[%clk 0:00:50.3]} 40... Kg6 {[%clk 0:00:17.2]} 41. f4 {[%clk 0:00:48.5]} 41...
gxf4 {[%clk 0:00:17.1]} 42. gxf4 {[%clk 0:00:49.4]} 42... Kf5 {[%clk 0:00:17]}
43. Kf3 {[%clk 0:00:50.1]} 43... Rc8 {[%clk 0:00:17.8]} 44. b4 {[%clk
0:00:40.6]} 44... a4 {[%clk 0:00:16.9]} 45. Ke3 {[%clk 0:00:32.7]} 45... Rc4
{[%clk 0:00:17.4]} 46. Rd2 {[%clk 0:00:29]} 46... Rxc3+ {[%clk 0:00:17.1]} 47.
Kd4 {[%clk 0:00:29.5]} 47... Rc4+ {[%clk 0:00:15.8]} 48. Kd3 {[%clk 0:00:30.1]}
48... Rxf4 {[%clk 0:00:14.9]} 0-1

[Event "Late-Titled-Tuesday-Blitz-December-26-2023"]
[Site "Chess.com"]
[Date "2023.12.26"]
[Round "5"]
[White "BilodeauA"]
[Black "DishonorOnYourCow"]
[Result "1-0"]
[WhiteElo "2892"]
[BlackElo "2560"]
[TimeControl "180+1"]
[EndTime "14:55:14 PST"]
[Termination "BilodeauA won by checkmate"]

1. e4 {[%clk 0:03:00.9]} 1... c5 {[%clk 0:02:59.4]} 2. Nf3 {[%clk 0:03:01.2]}
2... d6 {[%clk 0:02:59.4]} 3. Nc3 {[%clk 0:03:01.3]} 3... a6 {[%clk 0:02:58]} 4.
d4 {[%clk 0:03:01.6]} 4... cxd4 {[%clk 0:02:58.2]} 5. Nxd4 {[%clk 0:03:02.5]}
5... Nf6 {[%clk 0:02:58.5]} 6. Be2 {[%clk 0:03:03.2]} 6... e5 {[%clk 0:02:58]}
7. Nb3 {[%clk 0:03:03.4]} 7... Be7 {[%clk 0:02:58.3]} 8. O-O {[%clk 0:03:03.9]}
8... O-O {[%clk 0:02:57.1]} 9. Kh1 {[%clk 0:03:04.4]} 9... b5 {[%clk 0:02:50.4]}
10. a4 {[%clk 0:03:04.1]} 10... b4 {[%clk 0:02:48.1]} 11. Nd5 {[%clk 0:03:03.7]}
11... Bb7 {[%clk 0:02:44.4]} 12. Nxe7+ {[%clk 0:03:03.7]} 12... Qxe7 {[%clk
0:02:44.4]} 13. f3 {[%clk 0:03:04.4]} 13... d5 {[%clk 0:02:39.1]} 14. Bg5 {[%clk
0:02:52.2]} 14... Nbd7 {[%clk 0:02:19.6]} 15. Na5 {[%clk 0:02:39.6]} 15... h6
{[%clk 0:02:06.2]} 16. Bh4 {[%clk 0:02:22.4]} 16... Nc5 {[%clk 0:01:46.3]} 17.
Nxb7 {[%clk 0:02:18.9]} 17... Qxb7 {[%clk 0:01:45.1]} 18. Bxf6 {[%clk
0:02:18.9]} 18... gxf6 {[%clk 0:01:44.8]} 19. exd5 {[%clk 0:02:18.9]} 19... Rad8
{[%clk 0:01:38.8]} 20. Bc4 {[%clk 0:02:18.6]} 20... Nd7 {[%clk 0:01:35.4]} 21.
a5 {[%clk 0:02:14.3]} 21... Nc5 {[%clk 0:01:33.5]} 22. Qd2 {[%clk 0:02:11.5]}
22... Kg7 {[%clk 0:01:31.6]} 23. Rad1 {[%clk 0:01:59.7]} 23... Ne6 {[%clk
0:01:29.7]} 24. Qd3 {[%clk 0:01:51.1]} 24... Nf4 {[%clk 0:01:28.9]} 25. Qe4
{[%clk 0:01:50.7]} 25... Rd6 {[%clk 0:01:17.2]} 26. g3 {[%clk 0:01:47.1]} 26...
Ng6 {[%clk 0:01:15]} 27. h4 {[%clk 0:01:33.1]} 27... h5 {[%clk 0:00:55.6]} 28.
Kh2 {[%clk 0:01:14]} 28... Qd7 {[%clk 0:00:50.1]} 29. Bxa6 {[%clk 0:01:09.2]}
29... Rxa6 {[%clk 0:00:46.1]} 30. Qxb4 {[%clk 0:01:08.2]} 30... Rfa8 {[%clk
0:00:43.4]} 31. c4 {[%clk 0:01:04.9]} 31... Rxa5 {[%clk 0:00:42]} 32. Qc3 {[%clk
0:01:04.9]} 32... Ra2 {[%clk 0:00:28.1]} 33. c5 {[%clk 0:00:59.5]} 33... Qb5
{[%clk 0:00:23.3]} 34. Rf2 {[%clk 0:00:58.1]} 34... Rc8 {[%clk 0:00:20]} 35. Rc1
{[%clk 0:00:45.9]} 35... Ne7 {[%clk 0:00:18.6]} 36. d6 {[%clk 0:00:46.4]} 36...
Nc6 {[%clk 0:00:18.3]} 37. f4 {[%clk 0:00:42.7]} 37... Ra4 {[%clk 0:00:13.7]}
38. b3 {[%clk 0:00:37.2]} 38... Rb4 {[%clk 0:00:13.3]} 39. Qf3 {[%clk
0:00:29.7]} 39... Rxb3 {[%clk 0:00:11.4]} 40. Qxh5 {[%clk 0:00:30]} 40... Nd4
{[%clk 0:00:09.4]} 41. Qg4+ {[%clk 0:00:29.5]} 41... Kh6 {[%clk 0:00:06.4]} 42.
fxe5 {[%clk 0:00:26.7]} 42... f5 {[%clk 0:00:02.4]} 43. Qxd4 {[%clk 0:00:24.6]}
43... Rg8 {[%clk 0:00:02.4]} 44. Qf4+ {[%clk 0:00:24.8]} 44... Kh7 {[%clk
0:00:02.5]} 45. Qxf5+ {[%clk 0:00:25.3]} 45... Rg6 {[%clk 0:00:02.3]} 46. Qxf7+
{[%clk 0:00:25.4]} 46... Kh6 {[%clk 0:00:02.9]} 47. Qf8+ {[%clk 0:00:25.6]}
47... Kh5 {[%clk 0:00:03.2]} 48. Rf5+ {[%clk 0:00:23]} 48... Kg4 {[%clk
0:00:03.3]} 49. Rg5+ {[%clk 0:00:19.8]} 49... Rxg5 {[%clk 0:00:03]} 50. Qf4+
{[%clk 0:00:20.5]} 50... Kh5 {[%clk 0:00:02.5]} 51. Qxg5# {[%clk 0:00:21.2]} 1-0

[Event "Late-Titled-Tuesday-Blitz-December-26-2023"]
[Site "Chess.com"]
[Date "2023.12.26"]
[Round "5"]
[White "StellarChess"]
[Black "MelihKaanCan"]
[Result "1-0"]
[WhiteElo "2528"]
[BlackElo "2372"]
[TimeControl "180+1"]
[EndTime "14:55:14 PST"]
[Termination "StellarChess won on time"]

1. b4 {[%clk 0:02:57]} 1... e5 {[%clk 0:02:53.4]} 2. Bb2 {[%clk 0:02:57]} 2...
d6 {[%clk 0:02:53.7]} 3. e3 {[%clk 0:02:54.5]} 3... Nf6 {[%clk 0:02:40.2]} 4. d4
{[%clk 0:02:54.3]} 4... Nbd7 {[%clk 0:02:40.8]} 5. Nf3 {[%clk 0:02:51.8]} 5...
exd4 {[%clk 0:02:38.2]} 6. Nxd4 {[%clk 0:02:51.9]} 6... d5 {[%clk 0:02:35.1]} 7.
a3 {[%clk 0:02:49.9]} 7... a5 {[%clk 0:02:32.1]} 8. b5 {[%clk 0:02:47.7]} 8...
g6 {[%clk 0:02:29.2]} 9. Be2 {[%clk 0:02:45.9]} 9... Bg7 {[%clk 0:02:29.5]} 10.
Nd2 {[%clk 0:02:40.5]} 10... O-O {[%clk 0:02:29.8]} 11. O-O {[%clk 0:02:37.9]}
11... Ne5 {[%clk 0:02:27.2]} 12. N2f3 {[%clk 0:02:34.5]} 12... Ne4 {[%clk
0:02:08.8]} 13. Nxe5 {[%clk 0:02:30.5]} 13... Bxe5 {[%clk 0:02:09.7]} 14. Nc6
{[%clk 0:02:04.9]} 14... Bxh2+ {[%clk 0:01:09.3]} 15. Kxh2 {[%clk 0:02:05]}
15... Qh4+ {[%clk 0:01:09.3]} 16. Kg1 {[%clk 0:02:05.6]} 16... bxc6 {[%clk
0:01:09.8]} 17. Qd4 {[%clk 0:02:06.2]} 17... f6 {[%clk 0:00:44.8]} 18. f3 {[%clk
0:01:40.4]} 18... Qh5 {[%clk 0:00:44.4]} 19. bxc6 {[%clk 0:01:06.6]} 19... Ng3
{[%clk 0:00:41.2]} 20. Rfe1 {[%clk 0:00:59.8]} 20... Rb8 {[%clk 0:00:30.1]} 21.
Bd3 {[%clk 0:00:49.6]} 21... Bh3 {[%clk 0:00:27.4]} 22. Kf2 {[%clk 0:00:43.1]}
22... Rxb2 {[%clk 0:00:18.4]} 23. Qxb2 {[%clk 0:00:34.4]} 23... Qh4 {[%clk
0:00:18.6]} 24. Kg1 {[%clk 0:00:17.6]} 24... Be6 {[%clk 0:00:12.7]} 25. Qd4
{[%clk 0:00:16.9]} 25... Qg5 {[%clk 0:00:07.1]} 26. Qf4 {[%clk 0:00:15.8]} 26...
Qxf4 {[%clk 0:00:05.3]} 27. exf4 {[%clk 0:00:16.7]} 27... Bf5 {[%clk 0:00:06.1]}
28. Re7 {[%clk 0:00:16.8]} 28... Bxd3 {[%clk 0:00:05.8]} 29. cxd3 {[%clk
0:00:17]} 29... Rc8 {[%clk 0:00:05.3]} 30. Kf2 {[%clk 0:00:17.1]} 30... Nf5
{[%clk 0:00:05.6]} 31. Re6 {[%clk 0:00:16.9]} 31... Kf7 {[%clk 0:00:05.3]} 32.
Rae1 {[%clk 0:00:16.7]} 32... h5 {[%clk 0:00:04.3]} 33. g4 {[%clk 0:00:17]}
33... hxg4 {[%clk 0:00:04.4]} 34. fxg4 {[%clk 0:00:17.9]} 34... Nd4 {[%clk
0:00:04.4]} 35. Re7+ {[%clk 0:00:18.2]} 35... Kf8 {[%clk 0:00:05.1]} 36. Rh7
{[%clk 0:00:18.1]} 36... Kg8 {[%clk 0:00:03.9]} 37. Reh1 {[%clk 0:00:15.7]}
37... Re8 {[%clk 0:00:01.8]} 38. Rh8+ {[%clk 0:00:15.3]} 38... Kf7 {[%clk
0:00:02.7]} 39. R1h7+ {[%clk 0:00:15.5]} 39... Ke6 {[%clk 0:00:02.4]} 40. Rxe8+
{[%clk 0:00:16.2]} 40... Kd6 {[%clk 0:00:02.9]} 41. Re3 {[%clk 0:00:13.9]} 41...
Nxc6 {[%clk 0:00:03]} 42. Rf7 {[%clk 0:00:13.7]} 42... Nd4 {[%clk 0:00:01.9]}
43. Rxf6+ {[%clk 0:00:14.2]} 43... Kc5 {[%clk 0:00:02.8]} 44. Rxg6 {[%clk
0:00:14]} 44... c6 {[%clk 0:00:02.7]} 45. f5 {[%clk 0:00:14.5]} 1-0

[Event "Late-Titled-Tuesday-Blitz-December-26-2023"]
[Site "Chess.com"]
[Date "2023.12.26"]
[Round "5"]
[White "SlipperySpeedster"]
[Black "liczner"]
[Result "1-0"]
[WhiteElo "2640"]
[BlackElo "2932"]
[TimeControl "180+1"]
[EndTime "14:55:18 PST"]
[Termination "SlipperySpeedster won on time"]

1. Nf3 {[%clk 0:03:00.8]} 1... Nf6 {[%clk 0:02:02.6]} 2. b3 {[%clk 0:02:59.9]}
2... d5 {[%clk 0:02:02.2]} 3. Bb2 {[%clk 0:03:00.1]} 3... Bg4 {[%clk 0:02:02.7]}
4. Ne5 {[%clk 0:02:59.9]} 4... Bh5 {[%clk 0:02:02.1]} 5. d4 {[%clk 0:02:59.6]}
5... Nbd7 {[%clk 0:02:02.5]} 6. Nd2 {[%clk 0:02:59.2]} 6... e6 {[%clk
0:02:02.2]} 7. g3 {[%clk 0:02:56]} 7... Nxe5 {[%clk 0:02:00.7]} 8. dxe5 {[%clk
0:02:55.9]} 8... Nd7 {[%clk 0:02:01.1]} 9. Bg2 {[%clk 0:02:56]} 9... c6 {[%clk
0:01:55.8]} 10. O-O {[%clk 0:02:55.9]} 10... Bc5 {[%clk 0:01:50.4]} 11. Kh1
{[%clk 0:02:51.4]} 11... O-O {[%clk 0:01:49.4]} 12. f4 {[%clk 0:02:49.8]} 12...
f6 {[%clk 0:01:36.3]} 13. exf6 {[%clk 0:02:44.3]} 13... Nxf6 {[%clk 0:01:37.2]}
14. h3 {[%clk 0:02:38.6]} 14... Qe7 {[%clk 0:01:27.2]} 15. Qe1 {[%clk
0:02:36.8]} 15... Be3 {[%clk 0:01:21.4]} 16. Rd1 {[%clk 0:02:18.5]} 16... b5
{[%clk 0:01:07.1]} 17. Nf3 {[%clk 0:02:16.7]} 17... Ne4 {[%clk 0:01:03.6]} 18.
Rd3 {[%clk 0:02:08.8]} 18... Bb6 {[%clk 0:01:02.5]} 19. Ne5 {[%clk 0:02:04.2]}
19... Rac8 {[%clk 0:00:58.2]} 20. Bxe4 {[%clk 0:01:59.3]} 20... dxe4 {[%clk
0:00:58.4]} 21. Rd7 {[%clk 0:01:59.8]} 21... Qe8 {[%clk 0:00:42.3]} 22. Qc3
{[%clk 0:01:57.8]} 22... b4 {[%clk 0:00:33.6]} 23. Qc4 {[%clk 0:01:31.1]} 23...
Rc7 {[%clk 0:00:33.8]} 24. Rfd1 {[%clk 0:01:17.2]} 24... e3 {[%clk 0:00:32.3]}
25. g4 {[%clk 0:01:02.5]} 25... Bg6 {[%clk 0:00:31.7]} 26. f5 {[%clk 0:00:45.5]}
26... Bf7 {[%clk 0:00:27.5]} 27. Rxf7 {[%clk 0:00:20.9]} 27... Rcxf7 {[%clk
0:00:25.7]} 28. Nxf7 {[%clk 0:00:21.3]} 28... Rxf7 {[%clk 0:00:10.3]} 29. fxe6
{[%clk 0:00:21.5]} 29... Re7 {[%clk 0:00:10.9]} 30. Rd7 {[%clk 0:00:20.2]} 30...
Kf8 {[%clk 0:00:06.5]} 31. Qf4+ {[%clk 0:00:19.2]} 31... Kg8 {[%clk 0:00:06.3]}
32. Qf5 {[%clk 0:00:14.8]} 32... c5 {[%clk 0:00:03.6]} 33. Be5 {[%clk
0:00:11.3]} 33... h6 {[%clk 0:00:02.3]} 34. h4 {[%clk 0:00:10.2]} 34... Rxd7
{[%clk 0:00:01.7]} 35. exd7 {[%clk 0:00:10.1]} 35... Qa8+ {[%clk 0:00:02.6]} 36.
Kh2 {[%clk 0:00:07.5]} 36... Bd8 {[%clk 0:00:03.5]} 37. Qe6+ {[%clk 0:00:07.5]}
37... Kh7 {[%clk 0:00:02.2]} 38. Qf7 {[%clk 0:00:07.4]} 38... Bf6 {[%clk
0:00:01.9]} 39. Bxf6 {[%clk 0:00:07.8]} 39... Qb8+ {[%clk 0:00:02.4]} 40. Kh3
{[%clk 0:00:07.8]} 1-0

[Event "Late-Titled-Tuesday-Blitz-December-26-2023"]
[Site "Chess.com"]
[Date "2023.12.26"]
[Round "5"]
[White "PapaieDudu"]
[Black "IMRosen"]
[Result "0-1"]
[WhiteElo "2507"]
[BlackElo "2701"]
[TimeControl "180+1"]
[EndTime "14:55:22 PST"]
[Termination "IMRosen won on time"]

1. e4 {[%clk 0:03:00.9]} 1... c5 {[%clk 0:02:57.2]} 2. Nf3 {[%clk 0:03:00.7]}
2... e6 {[%clk 0:02:57.6]} 3. d4 {[%clk 0:03:00.7]} 3... cxd4 {[%clk 0:02:58.5]}
4. c3 {[%clk 0:03:00.2]} 4... dxc3 {[%clk 0:02:57.9]} 5. Nxc3 {[%clk 0:03:00.7]}
5... Nc6 {[%clk 0:02:57.5]} 6. Bd3 {[%clk 0:02:59.8]} 6... Bb4 {[%clk
0:02:56.7]} 7. O-O {[%clk 0:03:00]} 7... Nge7 {[%clk 0:02:54.9]} 8. Bg5 {[%clk
0:02:58.9]} 8... f6 {[%clk 0:02:50.7]} 9. Bd2 {[%clk 0:02:54.8]} 9... O-O {[%clk
0:02:48.6]} 10. a3 {[%clk 0:02:54.7]} 10... Bxc3 {[%clk 0:02:46.4]} 11. Bxc3
{[%clk 0:02:51]} 11... d5 {[%clk 0:02:46.7]} 12. Qe2 {[%clk 0:02:46.8]} 12... d4
{[%clk 0:02:44.4]} 13. Bd2 {[%clk 0:02:45.5]} 13... e5 {[%clk 0:02:41.4]} 14.
Bc4+ {[%clk 0:02:38.6]} 14... Kh8 {[%clk 0:02:41.7]} 15. h3 {[%clk 0:02:34.4]}
15... Qe8 {[%clk 0:02:31.4]} 16. b4 {[%clk 0:02:19.5]} 16... a6 {[%clk 0:02:29]}
17. b5 {[%clk 0:02:07.8]} 17... axb5 {[%clk 0:02:26.9]} 18. Bxb5 {[%clk
0:02:08.3]} 18... g5 {[%clk 0:02:25.3]} 19. Nh2 {[%clk 0:02:01.7]} 19... Ng6
{[%clk 0:02:19.8]} 20. Bb4 {[%clk 0:02:00.1]} 20... Rf7 {[%clk 0:02:15.8]} 21.
Ng4 {[%clk 0:01:55.4]} 21... Nf4 {[%clk 0:02:09.2]} 22. Qf3 {[%clk 0:01:54.6]}
22... h5 {[%clk 0:02:02.2]} 23. Nh2 {[%clk 0:01:37]} 23... Rg7 {[%clk
0:01:51.6]} 24. Kh1 {[%clk 0:01:18.3]} 24... g4 {[%clk 0:01:43.9]} 25. hxg4
{[%clk 0:01:12.4]} 25... hxg4 {[%clk 0:01:43.7]} 26. Qg3 {[%clk 0:01:09.7]}
26... Qh5 {[%clk 0:01:44.1]} 27. Bd2 {[%clk 0:00:47.9]} 27... Qh6 {[%clk
0:01:22.6]} 28. f3 {[%clk 0:00:42]} 28... gxf3 {[%clk 0:01:06.6]} 29. Qxf3
{[%clk 0:00:42.5]} 29... Bg4 {[%clk 0:01:03.8]} 30. Qf2 {[%clk 0:00:27.2]} 30...
Rag8 {[%clk 0:00:29.2]} 31. Bxf4 {[%clk 0:00:26.2]} 31... exf4 {[%clk
0:00:30.1]} 32. Qxf4 {[%clk 0:00:22.2]} 32... Rh7 {[%clk 0:00:28.4]} 33. Qxf6+
{[%clk 0:00:19]} 33... Qxf6 {[%clk 0:00:26.3]} 34. Rxf6 {[%clk 0:00:19.9]} 34...
Ne5 {[%clk 0:00:26.9]} 35. Raf1 {[%clk 0:00:14.1]} 35... d3 {[%clk 0:00:25.5]}
36. Rd6 {[%clk 0:00:14.1]} 36... Be2 {[%clk 0:00:22.8]} 37. Rf5 {[%clk
0:00:11.5]} 37... Ng4 {[%clk 0:00:22.8]} 38. Kg1 {[%clk 0:00:06]} 38... Ne3
{[%clk 0:00:15.4]} 39. Rf2 {[%clk 0:00:05.6]} 39... Rc8 {[%clk 0:00:06.6]} 40.
Rxe2 {[%clk 0:00:02.2]} 40... dxe2 {[%clk 0:00:05.9]} 41. Bxe2 {[%clk
0:00:03.1]} 41... Rg7 {[%clk 0:00:06]} 42. Nf3 {[%clk 0:00:02.6]} 42... Nc4
{[%clk 0:00:05.8]} 43. Kf2 {[%clk 0:00:02.9]} 43... Nxd6 {[%clk 0:00:05.9]} 44.
e5 {[%clk 0:00:03.4]} 44... Nf5 {[%clk 0:00:05.9]} 0-1

[Event "Late-Titled-Tuesday-Blitz-December-26-2023"]
[Site "Chess.com"]
[Date "2023.12.26"]
[Round "5"]
[White "Iball95"]
[Black "ozates"]
[Result "1/2-1/2"]
[WhiteElo "2817"]
[BlackElo "2616"]
[TimeControl "180+1"]
[EndTime "14:55:25 PST"]
[Termination "Game drawn by repetition"]

1. e4 {[%clk 0:03:00]} 1... e5 {[%clk 0:02:56.2]} 2. Nf3 {[%clk 0:03:00.7]} 2...
Nc6 {[%clk 0:02:56.3]} 3. Nc3 {[%clk 0:03:01.2]} 3... Nf6 {[%clk 0:02:54.6]} 4.
Bb5 {[%clk 0:03:01.6]} 4... Bd6 {[%clk 0:02:54.5]} 5. a3 {[%clk 0:03:01.7]} 5...
O-O {[%clk 0:02:53.6]} 6. d3 {[%clk 0:03:01.5]} 6... h6 {[%clk 0:02:53.2]} 7. g4
{[%clk 0:03:01.8]} 7... Nd4 {[%clk 0:02:44.9]} 8. g5 {[%clk 0:02:59.5]} 8...
hxg5 {[%clk 0:02:44.7]} 9. Bxg5 {[%clk 0:02:57.8]} 9... c6 {[%clk 0:02:45.1]}
10. Bc4 {[%clk 0:02:57.7]} 10... Ne6 {[%clk 0:02:43.9]} 11. Bh4 {[%clk
0:02:30.7]} 11... Nf4 {[%clk 0:02:41.7]} 12. Rg1 {[%clk 0:02:27.7]} 12... Be7
{[%clk 0:02:36.7]} 13. Qd2 {[%clk 0:02:12.9]} 13... d5 {[%clk 0:02:36.4]} 14.
Ba2 {[%clk 0:02:03.4]} 14... dxe4 {[%clk 0:02:19.5]} 15. Bxf6 {[%clk 0:02:03.1]}
15... Bxf6 {[%clk 0:02:16.1]} 16. Nxe4 {[%clk 0:02:03.6]} 16... Bf5 {[%clk
0:02:12.3]} 17. Nxf6+ {[%clk 0:01:58.7]} 17... Qxf6 {[%clk 0:02:11.7]} 18. O-O-O
{[%clk 0:01:59.1]} 18... Rad8 {[%clk 0:02:07.4]} 19. Qe3 {[%clk 0:01:50.6]}
19... Be6 {[%clk 0:02:02.1]} 20. Bxe6 {[%clk 0:01:47.6]} 20... Qxe6 {[%clk
0:01:55.5]} 21. Nxe5 {[%clk 0:01:43.7]} 21... Rfe8 {[%clk 0:01:55.7]} 22. Qxf4
{[%clk 0:01:19.6]} 22... Qxe5 {[%clk 0:01:56.1]} 23. Qxe5 {[%clk 0:01:10.9]}
23... Rxe5 {[%clk 0:01:57]} 24. Rde1 {[%clk 0:01:11]} 24... Rde8 {[%clk
0:01:56.4]} 25. Kd2 {[%clk 0:01:10.6]} 25... Kf8 {[%clk 0:01:53]} 26. f4 {[%clk
0:01:07.5]} 26... Rh5 {[%clk 0:01:49.9]} 27. Rxe8+ {[%clk 0:01:05.9]} 27... Kxe8
{[%clk 0:01:50.8]} 28. Rxg7 {[%clk 0:01:03.4]} 28... Rxh2+ {[%clk 0:01:50.4]}
29. Kc3 {[%clk 0:01:03.1]} 29... Rh4 {[%clk 0:01:41.5]} 30. Rg8+ {[%clk
0:00:51]} 30... Kd7 {[%clk 0:01:40.6]} 31. f5 {[%clk 0:00:47.2]} 31... Rh5
{[%clk 0:01:40.1]} 32. f6 {[%clk 0:00:41.9]} 32... Rf5 {[%clk 0:01:34.2]} 33.
Rb8 {[%clk 0:00:39.1]} 33... Kc7 {[%clk 0:01:34]} 34. Re8 {[%clk 0:00:39.4]}
34... Rxf6 {[%clk 0:01:32.5]} 35. Re7+ {[%clk 0:00:39.8]} 35... Kb6 {[%clk
0:01:33]} 36. b4 {[%clk 0:00:40.3]} 36... Rf1 {[%clk 0:01:26.6]} 37. a4 {[%clk
0:00:40.6]} 37... a5 {[%clk 0:01:21.2]} 38. bxa5+ {[%clk 0:00:40.1]} 38... Ka6
{[%clk 0:01:21.8]} 39. Kb4 {[%clk 0:00:37.3]} 39... f5 {[%clk 0:01:19.5]} 40.
Re8 {[%clk 0:00:33.4]} 40... Ka7 {[%clk 0:01:16.7]} 41. Rf8 {[%clk 0:00:30.7]}
41... f4 {[%clk 0:01:14.4]} 42. Kc5 {[%clk 0:00:28.8]} 42... f3 {[%clk
0:01:09.2]} 43. a6 {[%clk 0:00:26.3]} 43... b6+ {[%clk 0:00:55.3]} 44. Kxc6
{[%clk 0:00:25.7]} 44... f2 {[%clk 0:00:40.6]} 45. d4 {[%clk 0:00:14.5]} 45...
Rd1 {[%clk 0:00:38.7]} 46. Rxf2 {[%clk 0:00:14.7]} 46... Rxd4 {[%clk 0:00:39.1]}
47. Kb5 {[%clk 0:00:14.7]} 47... Rd5+ {[%clk 0:00:37.6]} 48. Kb4 {[%clk
0:00:15.4]} 48... Kxa6 {[%clk 0:00:37.7]} 49. c4 {[%clk 0:00:14.3]} 49... Rh5
{[%clk 0:00:37.3]} 50. Rd2 {[%clk 0:00:13.6]} 50... Rg5 {[%clk 0:00:36.7]} 51.
Rd5 {[%clk 0:00:13.8]} 51... Rg1 {[%clk 0:00:36.8]} 52. Rb5 {[%clk 0:00:13.3]}
52... Rb1+ {[%clk 0:00:36.4]} 53. Kc3 {[%clk 0:00:13.9]} 53... Rc1+ {[%clk
0:00:37]} 54. Kb3 {[%clk 0:00:14.4]} 54... Rb1+ {[%clk 0:00:36.9]} 55. Kc3
{[%clk 0:00:13.4]} 55... Rc1+ {[%clk 0:00:36.4]} 56. Kd3 {[%clk 0:00:12.4]}
56... Rd1+ {[%clk 0:00:36.6]} 57. Kc3 {[%clk 0:00:13]} 57... Rc1+ {[%clk
0:00:36.7]} 1/2-1/2